Cogmind - Beta 9.4 @@@ ROGUE MODE // 2020.03.16 @ 01:31:49 Player: UlyssesB Result: Destroyed by S-10 Pest with Light Assault Rifle Performance ------------- Evolutions (0) 0 Regions Visited (1) 200 Robots Destroyed (18) 90 Value Destroyed (102) 102 Prototype IDs (0) 0 Alien Tech Used (0) 0 Bonus (0) 0 TOTAL SCORE: 392 Bonus ------- None Cogmind --------- Core Integrity 0/250 Matter 300/300 Energy 100/100 System Corruption 6% Temperature Cool (0) Movement Treading (160) Location -10/Materials Parts ------- > --- POWER (1) -------- (None) > --- PROPULSION (2) --- Light Treads Light Treads > --- UTILITY (2) ------ High-capacity Storage Unit Seismic Analyzer > --- WEAPON (2) ------- (None) > --- INVENTORY (12) --- (None) Peak State ------------ > --- POWER ------------ Light Ion Engine > --- PROPULSION ------- Aluminum Leg Aluminum Leg > --- UTILITY ---------- Small Storage Unit Improved Terrain Scanner > --- WEAPON ----------- Assault Rifle Assault Rifle > --- INVENTORY -------- Light Ion Engine Light Treads Light Treads Compact Wheel Compact Wheel Assault Rifle [Rating: 8] Favorites ----------- Power Light Ion Engine Engine Light Ion Engine Propulsion Wheel Treads Light Treads Leg Aluminum Leg Wheel Wheel Utility Seismic Analyzer Device Improved Terrain Scanner Storage Small Storage Unit Processor Seismic Analyzer Weapon Assault Rifle Ballistic Gun Assault Rifle Special Weapon Mining Laser Build | -11 -10 ------- Run | Scr Mat Slots Evolved . | . . Power . | . . Propulsion . | . . Utility . | . . Weapon . | . . Parts Attached 15 | 10 5 Power 1 | 1 . Engine 1 | 1 . Core . | . . Reactor . | . . Propulsion 5 | 3 2 Treads 2 | . 2 Leg . | . . Wheel 3 | 3 . Hover . | . . Flight . | . . Utility 4 | 3 1 Device 1 | 1 . Storage 1 | . 1 Processor 2 | 2 . Hackware . | . . Protection . | . . Artifact . | . . Weapon 5 | 3 2 Energy Gun . | . . Energy Cannon . | . . Ballistic Gun 2 | 1 1 Ballistic Cannon . | . . Launcher . | . . Special Weapon 3 | 2 1 Impact Weapon . | . . Slashing Weapon . | . . Piercing Weapon . | . . Special Melee Weapon . | . . Unidentified Prototypes . | . . Parts Lost 10 | 3 7 Power 1 | . 1 Propulsion 3 | 1 2 Utility 2 | 2 . Weapon 4 | . 4 Highest Loss Streak 6 | 2 6 Average Slot Usage (%) 72 | . 72 Engine 4 | . 4 Treads 15 | . 15 Wheel 10 | . 10 Storage 12 | . 12 Processor 14 | . 14 Ballistic Gun 9 | . 9 Special Weapon 5 | . 5 Naked Turns . | . . Heaviest Build 38 | 12 38 Greatest Support 40 | 26 40 Greatest Overweight (x) 3 | . 3 Average Overweight (x) . | . . Largest Inventory Capacity 12 | 6 12 Average Capacity 4 | 4 10 Most Carried 6 | 6 4 Average Carried 4 | 4 1 Final Capacity 12 | 4 12 Final Carried 4 | 4 . Class Distribution -------------------- 96% | Scavenger-Mutant 3% | Mutant Dominant Class ---------------- Mutant | -10/Materials Resources | -11 -10 ----------- Run | Scr Mat Matter Collected 546 | 546 . Remotely . | . . Salvage Created 237 | 173 64 Parts 26 | 17 9 Haulers Intercepted . | . . Recyclers Shooed 2 | 2 . Parts Field Recycled . | . . Retrieved Matter . | . . Parts Self-Destructed . | . . Prevented . | . . Kills | -11 -10 ------- Run | Scr Mat Combat Hostiles Destroyed 9 | 6 3 Melee 2 | . 2 Guns 7 | 6 1 Classes Destroyed 4 | 2 2 Tunneler 8 | 8 . Watcher 1 | . 1 Swarmer 3 | . 3 Assembled 6 | 6 . Best Kill Streak 2 | 2 2 Combat Bots Only 2 | 2 2 Max Kills in Single Turn 1 | 1 1 Gunslinging . | . . Exploded . | . . Melee 1 | . 1 Uniques/NPCs Destroyed . | . . Combat | -11 -10 -------- Run | Scr Mat Damage Taken 1053 | 324 729 Core 252 | 66 186 Absorbed by Shields . | . . Core Remaining (%) 73 | 73 . Volleys Fired 66 | 60 6 Largest 2 | 2 2 Hottest 120 | 120 120 Shots Fired 114 | 103 11 Gun 93 | 87 6 Cannon . | . . Launcher . | . . Special 21 | 16 5 Kinetic 93 | 87 6 Thermal 21 | 16 5 Explosive . | . . Electromagnetic . | . . Robot Hit Streak 7 | 7 4 Robot Miss Streak 3 | 3 2 Penetration Max . | . . Secondary Targets 1 | 1 . Max Gunslinging Chain 1 | 1 . Shots Hit Robots 58 | 52 6 Core Hits 27 | 18 9 Critical Hits . | . . Critical Kills . | . . Critical Parts Destroyed . | . . Melee Attacks . | . . Impact . | . . Slashing . | . . Piercing . | . . Sneak Attacks . | . . Combat Hostiles . | . . Follow-up Attacks . | . . Damage Inflicted 786 | 621 165 Guns 631 | 573 58 Cannons . | . . Explosions . | . . Melee . | . . Ramming 83 | . 83 Kinetic 631 | 573 58 Thermal 72 | 48 24 Explosive . | . . Electromagnetic . | . . Impact . | . . Slashing . | . . Piercing . | . . Highest Corruption 6 | 2 6 Average Corruption 2 | 2 3 Corruption Purged . | . . Effects 12 | 6 6 Message Errors 2 | . 2 Matter Fused 1 | . 1 Heat Flow Errors 1 | 1 . Energy Discharges 1 | 1 . Data Loss (minor) 5 | 3 2 Targeting Errors 1 | . 1 Weapon Failures 1 | 1 . Overload Shots . | . . Overflow Damage 4 | 4 . Projectiles 4 | 4 . Explosions . | . . Melee . | . . Knockbacks . | . . Impact . | . . Kinetic . | . . Secondary . | . . Self-Inflicted Damage . | . . Shots . | . . Rammed 31 | . 31 Targets Rammed 32 | . 32 Kicked . | . . Crushed 1 | . 1 Highest Temperature 104 | 104 . Average Temperature 26 | 26 . Received Heat Transfer 140 | 140 . Siege Activations . | . . Robots Corrupted . | . . Combat Hostiles . | . . Parts Fried . | . . Impact Corruptions . | . . Robots Melted . | . . Combat Hostiles . | . . Parts Melted . | . . Heat Transferred 150 | 100 50 Parts Sabotaged . | . . Parts Stolen . | . . Parts Stripped . | . . Power Chain Reactions . | . . Missiles Intercepted . | . . Alert | -11 -10 ------- Run | Scr Mat Peak Influence 91 | 20 91 Average Influence 4 | 2 35 Maximum Alert Level . | . . Low Security (%) 100 | 100 100 Level 1 . | . . Level 2 . | . . Level 3 . | . . Level 4 . | . . Level 5 . | . . High Security . | . . Max Security . | . . Squads Dispatched . | . . Investigation . | . . Extermination . | . . Reinforcement . | . . Assault . | . . Garrison . | . . Intercept . | . . Construction Impeded . | . . Haulers Reinforced . | . . Stealth | -11 -10 --------- Run | Scr Mat Distress Signals 2 | . 2 Communications Jammed . | . . Distress Signals . | . . Times Spotted 20 | 9 11 Peak Tracking Total 5 | 3 5 Tactical Retreats 2 | 2 . Traps | -11 -10 ------- Run | Scr Mat Traps Triggered 4 | . 4 Indirectly . | . . Trap Hack Attempts . | . . Triggered . | . . Disarmed . | . . Reprogrammed . | . . Reused . | . . Traps Extracted . | . . Installed . | . . Triggered . | . . Machines | -11 -10 ---------- Run | Scr Mat Machines Disabled . | . . Max in Single Turn . | . . Machines Sabotaged . | . . Garrisons Compromised . | . . Overloaded Fab Kills . | . . Fab Network Shutdowns . | . . Hacking | -11 -10 --------- Run | Scr Mat Machines Accessed 1 | . 1 Terminals 1 | . 1 Fabricators . | . . Repair Stations . | . . Recycling Units . | . . Scanalyzers . | . . Garrison Access . | . . Total Hacks 4 | . 4 Successful 2 | . 2 Failed 2 | . 2 Catastrophic . | . . Database Lockouts . | . . Manual 2 | . 2 Terminals 4 | . 4 Fabricators . | . . Repair Stations . | . . Recycling Units . | . . Scanalyzers . | . . Garrison Access . | . . Terminal Hacks 1 | . 1 Locate Traps 1 | . 1 Fabricator Hacks . | . . Repair Station Hacks . | . . Recycling Unit Hacks . | . . Scanalyzer . | . . Garrison Access Hacks . | . . Unauthorized Hacks 3 | . 3 Terminals 1 | . 1 Botnet 1 | . 1 Fabricators . | . . Repair Stations . | . . Recycling Units . | . . Scanalyzers . | . . Garrison Access . | . . Data Cores Recovered . | . . Used . | . . Hacking Detections 1 | . 1 Full Trace Events 1 | . 1 Feedback Events . | . . Feedback Blocked . | . . Robot Schematics Acquired . | . . Robots Built . | . . Matter . | . . Time . | . . Total Robot Build Rating . | . . Part Schematics Acquired . | . . Parts Built . | . . Matter . | . . Time . | . . Total Part Build Rating . | . . Parts Repaired . | . . Time . | . . Parts Recycled . | . . Recycled Matter . | . . Retrieved Matter . | . . Retrieved Components . | . . Parts Scanalyzed . | . . Part Schematics Acquired . | . . Parts Damaged . | . . Bothacking | -11 -10 ------------ Run | Scr Mat Used RIF Installer . | . . Robots Hacked . | . . Non-combat . | . . Combat . | . . Robot Hacks Applied . | . . Relay Couplers Released . | . . Robots Rewired . | . . Allies Hacked . | . . Hacks Repelled . | . . Allies | -11 -10 -------- Run | Scr Mat Total Allies . | . . Largest Group . | . . Highest-Rated Group . | . . Highest-Rated Ally . | . . Total Orders . | . . Ally Attacks . | . . Total Damage . | . . Kills . | . . Allies Corrupted . | . . Allies Melted . | . . Intel | -11 -10 ------- Run | Scr Mat Robot Analysis Total . | . . Derelict Logs Recovered . | . . Drone Launches . | . . Drone Recoveries . | . . Exploration | -11 -10 ------------- Run | Scr Mat Turns Passed 4942 | 4683 259 Spaces Moved 1744 | 1593 151 Core . | . . Treads 57 | . 57 Legs 70 | 70 . Wheels 1617 | 1523 94 Hover . | . . Flight . | . . Fastest Speed 80 | 80 80 Average Speed 89 | 87 114 Slowest Speed 160 | 120 160 Overloaded Moves . | . . Propulsion Burnouts . | . . Robots Hopped . | . . Cave-ins Triggered . | . . Exploration Rate (%) 62 | 103 21 Regions Visited 1 Branch Regions . Pre-discovered Areas . | . . Known Exits Taken . | . . Unknown Exits Taken 1 | 1 . Scrap Searched . | . . Spaces Dug 2 | 2 . Terrain Destroyed 4 | 3 1 Melee . | . . Projectile 4 | 3 1 AOE . | . . Actions | -11 -10 --------- Run | Scr Mat Total 4946 | 4749 197 Wait 3083 | 3080 3 Move 1743 | 1592 151 Hop . | . . Pick Up 2 | 2 . Fast Attach 6 | 5 1 Attach 4 | . 4 Detach . | . . Swap 5 | 5 . Drop 5 | 5 . Fire 66 | 60 6 Melee . | . . Ram . | . . Kick . | . . Crush 32 | . 32 Escape Stasis . | . . Rewire . | . . Trap . | . . Miscellaneous . | . . Route ------- -11/Scrapyard -10/Materials History --------- Turn | Location | Event 1 | -11/Scrapyard | Discovered new exit (range 3) 3956 | -11/Scrapyard | Assembled infested the area 4684 | -11/Scrapyard | Entered Materials 4685 | -10/Materials | Build established: Scavenger-Mutant 4784 | -10/Materials | Core integrity fell below 50% 4813 | -10/Materials | Core integrity fell below 20% 4826 | -10/Materials | Lost 6 parts (1p2n3w) 4943 | -10/Materials | Destroyed by S-10 Pest with Light Assault Rifle Last Messages --------------- 04906_ # 04922_ G LKAO>Traps(Locate) Found 7 traps in 2 arrays: 3x Shock Trap 4x Alarm Trap Map updated. >>Trojan(Botnet) Trojan loaded successfully. Testing... Terminal linked with 0 systems. Awaiting botnet instructions. 04932_ K-01 Serf cleans the Nuclear Reactor. 04934_ Slammed into W-16 Scout. 04934_ W-16 Scout destroyed. 04936_ K-01 Serf cleans the Nuclear Reactor. 04943_ K-01 Serf collects debris. Map ----- +----------------------------------------------------+ | ?????????????????????????????????????????????????? | | ?????????????????????????????????????????????????? | | ???????????????????????????^?^???????????????????? | | ??????????????????????????????^??????????????????? | | ?????????????????????????????????????????????????? | | ?????????????????????????????????????????????????? | | ???????????????????????^ ????????????????????????? | | ??????????????????????? """?????????????????????? | | ??????????????????????? ??????????????????????? | | ??????????????????????# ??????????????????????? | | ??????????????????????# ??????????????????????? | | ??????????????????????# ??????????????????????? | | ??????????????????????# #??????????????????????? | | ??????????????????????# #??##??????????????????? | | ??????????????????????# ###"T"###??????????????? | | ?????????????########## ??????????????? | | ?????????????#! """ # ???????????????? | | ?????????????# """"" # s ???????????????? | | ?????????????# """"" # """ """ ???????????????? | | ?????????????# """"" #ks""" """ #?????????????? | | ?????????????# """ #= """ """ #?????????????? | | ?????????????#" +%s #?????????????? | | ?????????????#T #!% #?????????????? | | ?????????????#" # ###### #?????????????? | | ???########### % + #??????????????????????? | | ???# ##/####### @#??????????????????????? | | ???# ## #?????# ????????????????????? | | ???# ## #?????#[[==!!#???????????????????? | | ???# """ """ ##%#?????#[[==!!#???????????????????? | | ???# """ """ ## #?????########???????????????????? | | ???# """ """ ## #????????????????????????????????? | | ???# ## #????????????????????????????????? | | ???# ## #????????????????????????????????? | | ???#+######+### ##???????????????????????????????? | | ???# ^ #???????????????????????????????? | | ???# ^ #???????????????????????????????? | | ???# ^ #???????????????????????????????? | | ######+####### #???????????????????????????????? | | %%*% ## ##??????????????????????????????? | | =[%= # #??????????????????????????????? | | [%%""" " # #??????????????????????????????? | | %%"""""""" # #??????????????????????????????? | | %%%""""" # #??????????????????????????????? | | %%%%%%*= # #??????????????????????????????? | | ############## ##??????????????????????????????? | | ??????# # #???????????????????????????????? | | ??????# + #???????????????????????????????? | | ??????#!! # #???????????????????????????????? | | ??????# ! # #???????????????????????????????? | | ??????#! # #???????????????????????????????? | +----------------------------------------------------+ Best States ------------- Heat Dissipation 25 Energy Generation 10 Energy Capacity 125 Matter Stores 300 Matter Capacity 300 Sight Range 16 Terrain Scan Range 16 Terrain Scan Density 60 Evasion (%) 44 Recoil Reduction 2 Item Schematics ----------------- None Robot Schematics ------------------ None Fabricated ------------ Nothing Alien Tech Used ----------------- None Achievements -------------- Curiosity Killed The Cat Fist Fight Challenges ------------ None Game ------ Seed ChargeLargeDatajack Manual? 0 Play Time 00:23:47 Cumulative 121.0 hours Start 2020.03.16 @ 00:41:25 End 2020.03.16 @ 01:31:49 Sessions 2 Manual Loads 0 Difficulty Rogue Special Mode None Game No. 80 Rogue 80 Adventurer 0 Explorer 0 Win Type - Total 4 Types 4/0/0/0/0/0/0 Lore% 65 Gallery% 58 Achievement% 41 Wizard Run 0 Options --------- ASCII 1 Keyboard 0 Movement Mouse Keybinds 0 Fullscreen 2 Font 12/Smallcaps Map View 76x56 Tactical HUD 1 Map Filters NONE Filters NONE Steam 0 RUN: 8147bf32-e5a2-468b-b934-e54fb4386f12